[Event "47th GRE-chT 2019"]
[Site "Patra"]
[Date "2019.07.06"]
[Round "7.17"]
[White "Tsivelekidou, Evgenia"]
[Black "Tsivelekidou, Anthoula Elpida"]
[Result "1-0"]
[ECO "E15"]
[WhiteElo "1956"]
[BlackElo "1298"]
[Annotator "NA"]
[PlyCount "77"]
[EventDate "2019.07.02"]
[EventCountry "GRE"]
[SourceTitle "playchess.com"]
[Source "ChessBase"]
[SourceQuality "1"]
[TimeControl "5400+30"]

1. d4 {[%emt 0:00:00]} d5 {[%emt 0:00:00]} 2. c4 {[%emt 0:00:00]} e6 {[%emt 0:00:00]} 3. Nf3 {[%emt 0:00:00]} Nf6 {[%emt 0:00:00]} 4. g3 {[%emt 0:00:00]} Bb4+ {[%emt 0:00:00]} 5. Bd2 {[%emt 0:00:00]} Be7 {[%emt 0:00:00]} 6. Bg2 {[%emt 0:00:00]} O-O {[%emt 0:00:00]} 7. O-O {[%emt 0:00:06]} c6 {[%emt 0:00:17]} 8. Qc2 {[%emt 0:00:26]} Nbd7 {[%emt 0:00:15]} 9. b3 {[%emt 0:01:45]} b6 {[%emt 0:00:51]} 10. a4 {[%emt 0:01:45]} Ba6 {[%emt 0:02:08]} 11. Rd1 {[%emt 0:04:54]} Rc8 {[%emt 0:02:54]} 12. Bf4 {[%emt 0:12:09]} Re8 {[%emt 0:07:29]} 13. Ne5 {[%emt 0:05:20]} Nxe5 {[%emt 0:02:26]} 14. Bxe5 {[%emt 0:03:07]} Bd6 {[%emt 0:01:06]} 15. Bxd6 {[%emt 0:10:01]} Qxd6 {[%emt 0:00:10]} 16. Nd2 {[%emt 0:06:09]} Qb4 {[%emt 0:15:00]} 17. e4 {[%emt 0:05:52]} Nd7 {[%emt 0:08:09]} 18. a5 {[%emt 0:05:32]} b5 {[%emt 0:05:45]} 19. Bf1 {[%emt 0:03:34]} bxc4 {[%emt 0:09:13]} 20. bxc4 {[%emt 0:00:09]} Qe7 {[%emt 0:01:22]} 21. Bd3 {[%emt 0:06:58]} h6 {[%emt 0:00:50]} 22. c5 {[%emt 0:06:54]} Bxd3 {[%emt 0:07:07]} 23. Qxd3 {[%emt 0:00:05]} Nf8 {[%emt 0:01:33]} 24. e5 {[%emt 0:03:17]} Rb8 {[%emt 0:00:24]} 25. Rdb1 {[%emt 0:01:00]} Qc7 {[%emt 0:00:18]} 26. a6 {[%emt 0:03:03]} Nd7 {[%emt 0:06:03]} 27. Qa3 {[%emt 0:02:40]} Rec8 {[%emt 0:10:57]} 28. Nb3 {[%emt 0:02:41]} Rb5 {[%emt 0:06:00]} 29. Na5 {[%emt 0:00:46]} Rcb8 {[%emt 0:01:03]} 30. Nb7 {[%emt 0:00:55]} Rxb1+ {[%emt 0:00:23]} 31. Rxb1 {[%emt 0:00:05]} Nf8 {[%emt 0:01:40]} 32. Rb3 {[%emt 0:02:29]} Ng6 {[%emt 0:01:58]} 33. Qb2 {[%emt 0:02:32]} Ne7 {[%emt 0:00:43]} 34. Nd6 {[%emt 0:02:02]} Rxb3 {[%emt 0:00:15]} 35. Qxb3 {[%emt 0:00:05]} Qa5 {[%emt 0:02:14]} 36. Qb8+ {[%emt 0:00:40]} Kh7 {[%emt 0:00:12]} 37. Qxa7 {[%emt 0:00:37]} Nc8 {[%emt 0:01:11]} 38. Qxf7 {[%emt 0:02:08]} Qxa6 {[%emt 0:05:34]} 39. Ne8 {[%emt 0:01:58]} 1-0

[Event "47th GRE-chT 2019"]
[Site "Patra"]
[Date "2019.07.06"]
[Round "7.17"]
[White "Kouta, Antonia"]
[Black "Nikolaki, Dimitria"]
[Result "1-0"]
[ECO "B18"]
[WhiteElo "1762"]
[BlackElo "1323"]
[Annotator "NA"]
[PlyCount "93"]
[EventDate "2019.07.02"]
[EventCountry "GRE"]
[SourceTitle "playchess.com"]
[Source "ChessBase"]
[SourceQuality "1"]
[TimeControl "5400+30"]

1. e4 {[%emt 0:00:00]} c6 {[%emt 0:00:00]} 2. d4 {[%emt 0:00:00]} d5 {[%emt 0:00:00]} 3. Nc3 {[%emt 0:00:00]} dxe4 {[%emt 0:00:00]} 4. Nxe4 {[%emt 0:00:00]} Bf5 {[%emt 0:00:00]} 5. Ng3 {[%emt 0:00:33]} Bg6 {[%emt 0:00:00]} 6. N1e2 {[%emt 0:00:12]} h6 {[%emt 0:00:53]} 7. Nf4 {[%emt 0:00:32]} Bh7 {[%emt 0:00:08]} 8. Bc4 {[%emt 0:00:58]} Nf6 {[%emt 0:01:15]} 9. O-O {[%emt 0:01:09]} Nbd7 {[%emt 0:01:39]} 10. Re1 {[%emt 0:03:41]} Nb6 {[%emt 0:06:26]} 11. Bb3 {[%emt 0:02:54]} Qd7 {[%emt 0:13:02]} 12. a4 {[%emt 0:16:36]} Rd8 {[%emt 0:10:15]} 13. c3 {[%emt 0:08:37]} Nbd5 {[%emt 0:04:02]} 14. Nxd5 Nxd5 15. Nh5 {[%emt 0:06:01]} Bg6 {[%emt 0:08:02]} 16. Qe2 {[%emt 0:06:16]} e6 {[%emt 0:09:07]} 17. Qe5 {[%emt 0:08:59]} Bxh5 {[%emt 0:00:50]} 18. Qxh5 {[%emt 0:00:07]} Nf6 {[%emt 0:03:18]} 19. Qf3 {[%emt 0:06:47]} Be7 {[%emt 0:03:29]} 20. Qg3 {[%emt 0:01:19]} Bf8 {[%emt 0:07:34]} 21. f4 {[%emt 0:03:11]} Qc7 {[%emt 0:10:21]} 22. Qh3 {[%emt 0:11:36]} Be7 {[%emt 0:04:30]} 23. f5 {[%emt 0:04:08]} exf5 {[%emt 0:01:55]} 24. Qxf5 {[%emt 0:00:13]} O-O {[%emt 0:02:16]} 25. Bxh6 {[%emt 0:02:50]} gxh6 {[%emt 0:05:33]} 26. Qg6+ {[%emt 0:02:31]} Kh8 {[%emt 0:00:55]} 27. Qxh6+ {[%emt 0:04:57]} Nh7 {[%emt 0:04:25]} 28. Re5 {[%emt 0:05:08]} Rd6 {[%emt 0:02:03]} 29. Qh3 {[%emt 0:01:06]} Qd7 {[%emt 0:01:57]} 30. Qe3 {[%emt 0:01:57]} Bf6 {[%emt 0:00:31]} 31. Rh5 {[%emt 0:00:49]} Bg7 {[%emt 0:00:32]} 32. Qg5 {[%emt 0:01:27]} Rg6 {[%emt 0:00:31]} 33. Qh4 {[%emt 0:00:30]} Qg4 {[%emt 0:00:28]} 34. Rxh7+ {[%emt 0:00:16]} Kg8 {[%emt 0:00:06]} 35. Qxg4 {[%emt 0:00:49]} Rxg4 {[%emt 0:00:06]} 36. Rh5 {[%emt 0:00:15]} Rf4 {[%emt 0:01:16]} 37. Re1 {[%emt 0:00:33]} Rf6 {[%emt 0:00:32]} 38. Re3 {[%emt 0:00:55]} Rg6 {[%emt 0:00:28]} 39. Rf5 {[%emt 0:00:38]} Rf6 {[%emt 0:00:31]} 40. Rg5 {[%emt 0:00:00]} Kh8 {[%emt 0:00:00]} 41. Rh5+ {[%emt 0:00:00]} Rh6 {[%emt 0:00:00]} 42. Rxh6+ {[%emt 0:00:00]} Bxh6 {[%emt 0:00:00]} 43. Re7 {[%emt 0:00:00]} Bg7 {[%emt 0:00:00]} 44. Rxb7 {[%emt 0:00:00]} Rd8 {[%emt 0:00:00]} 45. Bxf7 {[%emt 0:00:00]} Kh7 {[%emt 0:00:00]} 46. Rxa7 {[%emt 0:00:00]} Rb8 {[%emt 0:00:00]} 47. b4 {[%emt 0:00:00]} 1-0

[Event "47th GRE-chT 2019"]
[Site "Patra"]
[Date "2019.07.06"]
[Round "7.18"]
[White "Tsaknakis, Zisis"]
[Black "Zisiadis, Dimitrios"]
[Result "1-0"]
[ECO "A49"]
[WhiteElo "2263"]
[BlackElo "2082"]
[Annotator "NA"]
[PlyCount "119"]
[EventDate "2019.07.02"]
[EventCountry "GRE"]
[SourceTitle "playchess.com"]
[Source "ChessBase"]
[SourceQuality "1"]
[TimeControl "5400+30"]

1. Nf3 {[%emt 0:00:00]} g6 {[%emt 0:00:00]} 2. g3 {[%emt 0:00:00]} Bg7 {[%emt 0:00:00]} 3. Bg2 {[%emt 0:00:21]} Nf6 {[%emt 0:00:00]} 4. O-O {[%emt 0:00:05]} O-O {[%emt 0:00:00]} 5. d4 {[%emt 0:00:02]} d6 {[%emt 0:00:00]} 6. Re1 {[%emt 0:08:29]} c5 {[%emt 0:04:28]} 7. Nc3 {[%emt 0:02:18]} Na6 {[%emt 0:06:13]} 8. e4 {[%emt 0:08:33]} cxd4 {[%emt 0:01:51]} 9. Nxd4 {[%emt 0:08:34]} Qb6 {[%emt 0:18:22]} 10. Re2 {[%emt 0:02:22]} Bg4 {[%emt 0:00:27]} 11. Nf3 {[%emt 0:08:01]} Nc5 {[%emt 0:00:17]} 12. h3 {[%emt 0:11:09]} Be6 {[%emt 0:09:51]} 13. Rb1 {[%emt 0:01:51]} a5 {[%emt 0:02:42]} 14. Be3 {[%emt 0:04:17]} Rfc8 {[%emt 0:05:24]} 15. e5 {[%emt 0:14:13]} dxe5 {[%emt 0:00:01]} 16. Na4 {[%emt 0:02:46]} Qb5 {[%emt 0:01:58]} 17. Nxc5 {[%emt 0:00:05]} Rxc5 {[%emt 0:00:08]} 18. Bxc5 {[%emt 0:00:03]} Qxc5 {[%emt 0:01:13]} 19. Rxe5 {[%emt 0:04:44]} Nd5 {[%emt 0:03:49]} 20. Re2 {[%emt 0:01:49]} h6 {[%emt 0:12:37]} 21. Nh4 {[%emt 0:08:32]} Nc7 {[%emt 0:01:43]} 22. b3 {[%emt 0:01:44]} Bd5 {[%emt 0:01:50]} 23. c4 {[%emt 0:02:31]} Bxg2 {[%emt 0:02:49]} 24. Kxg2 {[%emt 0:04:09]} Qc6+ {[%emt 0:00:34]} 25. Nf3 {[%emt 0:00:40]} Bf6 {[%emt 0:01:09]} 26. Qd2 {[%emt 0:01:05]} Kg7 {[%emt 0:00:03]} 27. Rd1 {[%emt 0:01:28]} a4 {[%emt 0:03:18]} 28. b4 {[%emt 0:01:04]} a3 {[%emt 0:11:25]} 29. Qd3 {[%emt 0:01:30]} Ra4 {[%emt 0:01:52]} 30. Qb3 {[%emt 0:00:58]} b5 {[%emt 0:02:08]} 31. cxb5 {[%emt 0:00:08]} Qxb5 {[%emt 0:00:48]} 32. Ne5 {[%emt 0:01:40]} Bxe5 {[%emt 0:00:01]} 33. Rxe5 {[%emt 0:00:43]} Qxe5 {[%emt 0:00:01]} 34. Qxa4 {[%emt 0:00:30]} Nb5 {[%emt 0:07:04]} 35. Qc2 {[%emt 0:00:32]} Kh7 {[%emt 0:00:56]} 36. Qc4 {[%emt 0:00:28]} Nd6 {[%emt 0:01:15]} 37. Qd5 {[%emt 0:00:29]} Qb2 {[%emt 0:00:04]} 38. Re1 {[%emt 0:00:31]} Qf6 {[%emt 0:00:36]} 39. Re3 {[%emt 0:00:28]} Nf5 {[%emt 0:00:00]} 40. Rxa3 {[%emt 0:00:00]} e6 {[%emt 0:00:00]} 41. Qe4 {[%emt 0:00:00]} h5 {[%emt 0:00:00]} 42. g4 {[%emt 0:00:00]} hxg4 {[%emt 0:00:00]} 43. hxg4 {[%emt 0:00:00]} Nh4+ {[%emt 0:00:00]} 44. Kg3 {[%emt 0:00:00]} Qg5 {[%emt 0:00:00]} 45. f4 {[%emt 0:00:00]} Qe7 {[%emt 0:00:00]} 46. g5 {[%emt 0:00:00]} Nf5+ {[%emt 0:00:00]} 47. Kg4 Nh6+ {[%emt 4:26:13]} 48. Kh3 {[%emt 0:00:00]} Nf5 {[%emt 0:00:00]} 49. Kh2 {[%emt 0:00:07]} Qd8 {[%emt 0:00:00]} 50. Rd3 {[%emt 0:00:46]} Qc8 {[%emt 0:00:00]} 51. Rh3+ {[%emt 0:00:10]} Kg8 {[%emt 0:00:00]} 52. b5 {[%emt 0:02:23]} Qd8 {[%emt 0:00:00]} 53. Qd3 {[%emt 0:01:26]} Qb6 {[%emt 0:00:00]} 54. Qf3 {[%emt 0:00:30]} Qa5 {[%emt 0:00:00]} 55. Qg2 {[%emt 0:00:55]} Qa4 {[%emt 0:00:00]} 56. Qd2 {[%emt 0:01:24]} Qa8 {[%emt 0:00:00]} 57. b6 {[%emt 0:01:02]} Qb8 {[%emt 0:00:00]} 58. b7 {[%emt 0:00:13]} e5 {[%emt 0:00:00]} 59. Ra3 {[%emt 0:00:57]} Kg7 {[%emt 0:00:00]} 60. Qb2 {[%emt 0:01:02]} 1-0

[Event "47th GRE-chT 2019"]
[Site "Patra"]
[Date "2019.07.06"]
[Round "7.18"]
[White "Nikolakis, Panagiotis Marios"]
[Black "Ergazakis, Ioannis"]
[Result "0-1"]
[ECO "B92"]
[WhiteElo "1911"]
[BlackElo "2281"]
[Annotator "NA"]
[PlyCount "44"]
[EventDate "2019.07.02"]
[EventCountry "GRE"]
[SourceTitle "playchess.com"]
[Source "ChessBase"]
[SourceQuality "1"]
[TimeControl "5400+30"]

1. e4 {[%emt 0:00:00]} c5 {[%emt 0:00:00]} 2. Nf3 {[%emt 0:00:00]} d6 {[%emt 0:00:00]} 3. d4 {[%emt 0:00:00]} cxd4 {[%emt 0:00:00]} 4. Nxd4 {[%emt 0:00:00]} Nf6 {[%emt 0:00:00]} 5. Nc3 {[%emt 0:00:07]} a6 {[%emt 0:00:00]} 6. Be2 {[%emt 0:00:36]} e5 {[%emt 0:00:10]} 7. Nb3 {[%emt 0:00:07]} Be7 {[%emt 0:00:09]} 8. Be3 {[%emt 0:00:07]} Be6 {[%emt 0:00:05]} 9. Nd5 {[%emt 0:00:26]} Bxd5 {[%emt 0:00:38]} 10. exd5 {[%emt 0:00:09]} Nbd7 {[%emt 0:00:08]} 11. c4 {[%emt 0:00:45]} Rc8 {[%emt 0:00:15]} 12. O-O {[%emt 0:00:14]} O-O {[%emt 0:00:07]} 13. Qd2 {[%emt 0:00:23]} b6 {[%emt 0:01:59]} 14. Rac1 {[%emt 0:03:26]} Ne4 {[%emt 0:00:57]} 15. Qc2 {[%emt 0:19:38]} Nec5 {[%emt 0:01:52]} 16. Nxc5 {[%emt 0:09:43]} bxc5 {[%emt 0:01:10]} 17. f4 {[%emt 0:10:34]} Bf6 {[%emt 0:02:40]} 18. Kh1 {[%emt 0:04:17]} Rb8 {[%emt 0:00:26]} 19. b3 {[%emt 0:00:20]} exf4 {[%emt 0:01:09]} 20. Bxf4 {[%emt 0:00:08]} Be5 {[%emt 0:00:20]} 21. Bd3 {[%emt 0:05:37]} g6 {[%emt 0:00:51]} 22. Bh6 {[%emt 0:00:17]} Qh4 {[%emt 0:00:26]} 0-1

[Event "47th GRE-chT 2019"]
[Site "Patra"]
[Date "2019.07.06"]
[Round "7.19"]
[White "Stefanou, Dimitrios"]
[Black "Gavriil, Odysseas-Panagiotis"]
[Result "0-1"]
[ECO "A54"]
[WhiteElo "1975"]
[BlackElo "2038"]
[Annotator "NA"]
[PlyCount "110"]
[EventDate "2019.07.02"]
[EventCountry "GRE"]
[SourceTitle "playchess.com"]
[Source "ChessBase"]
[SourceQuality "1"]
[TimeControl "5400+30"]

1. d4 {[%emt 0:00:00]} Nf6 {[%emt 0:00:00]} 2. Nf3 {[%emt 0:00:00]} d6 {[%emt 0:00:00]} 3. g3 {[%emt 0:00:15]} Nbd7 {[%emt 0:00:14]} 4. Bg2 {[%emt 0:01:15]} e5 {[%emt 0:00:13]} 5. O-O {[%emt 0:06:32]} Be7 {[%emt 0:00:05]} 6. b3 {[%emt 0:01:31]} c6 {[%emt 0:01:11]} 7. Bb2 {[%emt 0:01:59]} Qc7 {[%emt 0:00:16]} 8. c4 {[%emt 0:00:57]} O-O {[%emt 0:00:34]} 9. Nc3 {[%emt 0:01:18]} Re8 {[%emt 0:00:12]} 10. Qc2 {[%emt 0:00:41]} Bf8 {[%emt 0:00:24]} 11. e3 {[%emt 0:01:45]} b6 {[%emt 0:00:33]} 12. Rfd1 {[%emt 0:03:12]} Bb7 {[%emt 0:00:32]} 13. Rac1 {[%emt 0:00:22]} Rad8 {[%emt 0:00:36]} 14. b4 {[%emt 0:03:50]} a6 {[%emt 0:00:09]} 15. Qb3 {[%emt 0:02:44]} Qb8 {[%emt 0:00:25]} 16. a4 {[%emt 0:05:51]} c5 {[%emt 0:02:27]} 17. b5 {[%emt 0:14:48]} a5 {[%emt 0:04:06]} 18. dxe5 {[%emt 0:02:26]} dxe5 {[%emt 0:01:10]} 19. Nd5 {[%emt 0:10:30]} Bxd5 {[%emt 0:04:04]} 20. cxd5 {[%emt 0:00:14]} Ne4 {[%emt 0:00:40]} 21. Nd2 {[%emt 0:05:29]} Nd6 {[%emt 0:04:32]} 22. e4 {[%emt 0:02:14]} g6 {[%emt 0:03:53]} 23. Nc4 {[%emt 0:01:22]} Bh6 {[%emt 0:01:51]} 24. Rc2 {[%emt 0:01:21]} Re7 {[%emt 0:04:32]} 25. Re2 {[%emt 0:01:27]} Rf8 {[%emt 0:10:07]} 26. Bh3 {[%emt 0:01:12]} f6 {[%emt 0:06:05]} 27. Rf1 {[%emt 0:02:09]} Kh8 {[%emt 0:02:18]} 28. Be6 {[%emt 0:02:21]} Rfe8 {[%emt 0:03:19]} 29. Kh1 {[%emt 0:06:08]} Nxc4 {[%emt 0:00:53]} 30. Qxc4 {[%emt 0:00:05]} Qd6 {[%emt 0:00:01]} 31. Bc3 {[%emt 0:02:33]} Nf8 {[%emt 0:02:03]} 32. Bh3 {[%emt 0:00:08]} Rf7 {[%emt 0:01:09]} 33. Qb3 {[%emt 0:02:55]} Rc7 {[%emt 0:03:24]} 34. Qb2 {[%emt 0:02:02]} g5 {[%emt 0:02:00]} 35. Bf5 {[%emt 0:01:52]} Ng6 {[%emt 0:00:20]} 36. f3 {[%emt 0:05:32]} c4 {[%emt 0:06:28]} 37. Ref2 {[%emt 0:01:45]} Kg8 {[%emt 0:11:05]} 38. Rd1 {[%emt 0:00:55]} Bf8 {[%emt 0:01:35]} 39. Qc1 {[%emt 0:01:00]} Rd8 {[%emt 0:09:32]} 40. Kg2 {[%emt 0:00:00]} Kg7 {[%emt 0:00:00]} 41. Bxg6 {[%emt 0:00:00]} hxg6 {[%emt 0:00:00]} 42. f4 {[%emt 0:00:00]} gxf4 {[%emt 0:00:00]} 43. gxf4 {[%emt 0:00:00]} Re8 {[%emt 0:00:00]} 44. fxe5 {[%emt 0:00:00]} fxe5 {[%emt 0:00:00]} 45. Qg5 {[%emt 0:00:00]} Qe7 {[%emt 0:06:24]} 46. Qxe7+ {[%emt 0:00:00]} Rcxe7 {[%emt 0:00:01]} 47. Rdf1 {[%emt 0:00:00]} Rd7 {[%emt 0:02:42]} 48. Rf6 {[%emt 0:00:00]} Bd6 {[%emt 0:05:17]} 49. Kg3 {[%emt 0:00:43]} Bb4 {[%emt 0:01:42]} 50. Bxb4 {[%emt 0:09:39]} axb4 {[%emt 0:00:01]} 51. Rc6 {[%emt 0:00:13]} Ra8 {[%emt 0:01:03]} 52. Rxc4 {[%emt 0:00:28]} Rxa4 {[%emt 0:00:00]} 53. Rb1 {[%emt 0:00:37]} Ra3+ {[%emt 0:00:02]} 54. Kg4 {[%emt 0:00:43]} Rf7 {[%emt 0:00:46]} 55. Rbc1 {[%emt 0:00:43]} Kh6 {[%emt 0:00:11]} 0-1

[Event "47th GRE-chT 2019"]
[Site "Patra"]
[Date "2019.07.06"]
[Round "7.19"]
[White "Loukisas, Dimitrios"]
[Black "Stoimenidis, Dimitrios"]
[Result "0-1"]
[ECO "E46"]
[WhiteElo "1898"]
[BlackElo "1586"]
[Annotator "NA"]
[PlyCount "80"]
[EventDate "2019.07.02"]
[EventCountry "GRE"]
[SourceTitle "playchess.com"]
[Source "ChessBase"]
[SourceQuality "1"]
[TimeControl "5400+30"]

1. d4 {[%emt 0:00:00]} Nf6 {[%emt 0:00:00]} 2. c4 {[%emt 0:00:00]} e6 {[%emt 0:00:00]} 3. Nc3 {[%emt 0:00:00]} Bb4 {[%emt 0:00:00]} 4. e3 {[%emt 0:00:00]} O-O {[%emt 0:00:00]} 5. Nge2 {[%emt 0:00:00]} d5 {[%emt 0:00:00]} 6. a3 {[%emt 0:00:05]} Be7 {[%emt 0:00:00]} 7. Nf4 {[%emt 0:00:07]} c6 {[%emt 0:01:11]} 8. Be2 {[%emt 0:01:12]} a5 {[%emt 0:00:12]} 9. b3 {[%emt 0:00:41]} Na6 {[%emt 0:00:17]} 10. g4 {[%emt 0:01:07]} Nd7 {[%emt 0:39:18]} 11. cxd5 {[%emt 0:01:34]} exd5 {[%emt 0:01:38]} 12. Bd3 {[%emt 0:02:55]} Bd6 {[%emt 0:07:01]} 13. Qf3 {[%emt 0:05:03]} Re8 {[%emt 0:19:32]} 14. h4 {[%emt 0:06:41]} c5 {[%emt 0:02:37]} 15. Ncxd5 {[%emt 0:02:02]} cxd4 {[%emt 0:00:28]} 16. g5 {[%emt 0:31:05]} Ne5 {[%emt 0:06:03]} 17. Qh5 {[%emt 0:14:08]} Nxd3+ {[%emt 0:01:14]} 18. Nxd3 {[%emt 0:00:08]} Be5 {[%emt 0:03:29]} 19. e4 {[%emt 0:14:35]} Bb8 {[%emt 0:00:50]} 20. Nf6+ {[%emt 0:03:05]} gxf6 {[%emt 0:01:16]} 21. gxf6 {[%emt 0:00:07]} Rxe4+ {[%emt 0:02:39]} 22. Kf1 {[%emt 0:00:06]} Qxf6 {[%emt 0:04:20]} 23. Bg5 {[%emt 0:03:37]} Qg6 {[%emt 0:05:13]} 24. Qd1 {[%emt 0:02:04]} Rg4 {[%emt 0:01:30]} 25. f3 {[%emt 0:01:17]} Rg3 {[%emt 0:00:56]} 26. Nf2 {[%emt 0:00:44]} Be5 {[%emt 0:01:44]} 27. Qe2 {[%emt 0:02:39]} f6 {[%emt 0:00:42]} 28. Rc1 {[%emt 0:00:17]} Bf5 {[%emt 0:00:54]} 29. Qb5 {[%emt 0:00:54]} Re8 {[%emt 0:00:52]} 30. h5 {[%emt 0:01:41]} Qf7 {[%emt 0:00:25]} 31. Bxf6 {[%emt 0:00:19]} Bd7 {[%emt 0:00:30]} 32. Qxe5 {[%emt 0:02:51]} Rxe5 {[%emt 0:00:11]} 33. Bxe5 {[%emt 0:00:05]} Qxf3 {[%emt 0:00:35]} 34. Bxg3 {[%emt 0:00:46]} Bb5+ {[%emt 0:00:15]} 35. Rc4 {[%emt 0:00:22]} Kf7 {[%emt 0:00:31]} 36. Rh3 {[%emt 0:00:41]} Bxc4+ {[%emt 0:00:23]} 37. bxc4 {[%emt 0:00:25]} Qc6 {[%emt 0:00:15]} 38. Nd3 {[%emt 0:00:29]} Qxc4 {[%emt 0:01:08]} 39. Bf2 {[%emt 0:00:24]} Nc5 {[%emt 0:00:24]} 40. Rf3+ {[%emt 0:00:00]} Ke6 {[%emt 0:00:00]} 0-1

[Event "47th GRE-chT 2019"]
[Site "Patra"]
[Date "2019.07.06"]
[Round "7.20"]
[White "Karamichos, Michail"]
[Black "Dristellas, Neoklis"]
[Result "1/2-1/2"]
[ECO "C54"]
[WhiteElo "1559"]
[BlackElo "1577"]
[Annotator "NA"]
[PlyCount "152"]
[EventDate "2019.07.02"]
[EventCountry "GRE"]
[SourceTitle "playchess.com"]
[Source "ChessBase"]
[SourceQuality "1"]
[TimeControl "5400+30"]

1. e4 {[%emt 0:00:00]} e5 {[%emt 0:00:00]} 2. Nf3 {[%emt 0:00:00]} Nc6 {[%emt 0:03:11]} 3. Bc4 {[%emt 0:00:00]} Bc5 {[%emt 0:00:08]} 4. c3 {[%emt 0:00:10]} Nf6 {[%emt 0:00:16]} 5. d3 {[%emt 0:00:20]} a6 {[%emt 0:00:10]} 6. Bb3 {[%emt 0:00:17]} Ba7 {[%emt 0:00:22]} 7. O-O {[%emt 0:00:06]} d6 {[%emt 0:00:47]} 8. Nbd2 {[%emt 0:01:13]} O-O {[%emt 0:00:33]} 9. h3 {[%emt 0:00:14]} h6 {[%emt 0:00:30]} 10. Re1 {[%emt 0:01:10]} Re8 {[%emt 0:00:30]} 11. Nf1 {[%emt 0:00:16]} Be6 {[%emt 0:00:23]} 12. Bc2 {[%emt 0:00:43]} d5 {[%emt 0:01:02]} 13. Qe2 {[%emt 0:04:05]} Qd7 {[%emt 0:00:46]} 14. Ng3 {[%emt 0:04:17]} Rad8 {[%emt 0:08:12]} 15. Kh2 {[%emt 0:03:28]} b5 {[%emt 0:00:57]} 16. Nh4 {[%emt 0:06:13]} Ne7 {[%emt 0:05:09]} 17. Qf3 {[%emt 0:07:22]} Ng4+ {[%emt 0:04:45]} 18. Kh1 {[%emt 0:03:07]} Nxf2+ {[%emt 0:00:12]} 19. Kh2 {[%emt 0:01:23]} Bxh3 {[%emt 0:02:59]} 20. d4 {[%emt 0:12:21]} Ng4+ {[%emt 0:02:08]} 21. Kh1 {[%emt 0:05:20]} exd4 {[%emt 0:00:29]} 22. gxh3 {[%emt 0:11:26]} Ne3 {[%emt 0:05:57]} 23. Nh5 {[%emt 0:05:14]} Ng6 {[%emt 0:01:07]} 24. Bxe3 {[%emt 0:02:24]} dxe3 {[%emt 0:01:28]} 25. Nf5 {[%emt 0:07:18]} Qc8 {[%emt 0:02:55]} 26. Nhxg7 {[%emt 0:04:31]} Re5 {[%emt 0:11:31]} 27. Qh5 {[%emt 0:03:37]} dxe4 {[%emt 0:00:32]} 28. Bb3 {[%emt 0:02:50]} Rd6 {[%emt 0:05:16]} 29. Nxd6 {[%emt 0:00:37]} Rxh5 {[%emt 0:00:10]} 30. Nxc8 {[%emt 0:00:28]} Rxh3+ {[%emt 0:04:05]} 31. Kg1 {[%emt 0:00:25]} Bc5 {[%emt 0:01:53]} 32. Re2 {[%emt 0:01:24]} Kxg7 {[%emt 0:07:21]} 33. Rf1 {[%emt 0:03:04]} Rg3+ {[%emt 0:01:07]} 34. Kh2 {[%emt 0:00:36]} Rf3 {[%emt 0:05:57]} 35. Rg1 {[%emt 0:05:09]} Rf2+ {[%emt 0:01:17]} 36. Rxf2 {[%emt 0:00:11]} exf2 {[%emt 0:01:48]} 37. Rf1 {[%emt 0:00:11]} e3 {[%emt 0:00:05]} 38. Bd1 {[%emt 0:00:23]} Nf4 {[%emt 0:00:27]} 39. b4 {[%emt 0:00:31]} Bf8 {[%emt 0:00:00]} 40. Kg3 {[%emt 0:00:00]} e2 {[%emt 0:00:00]} 41. Bxe2 {[%emt 0:00:00]} Nxe2+ {[%emt 0:00:00]} 42. Kxf2 {[%emt 0:00:00]} Nxc3 {[%emt 0:00:00]} 43. a3 {[%emt 0:00:00]} c5 {[%emt 0:00:00]} 44. Ra1 {[%emt 0:00:00]} Kf6 {[%emt 0:00:00]} 45. Nb6 {[%emt 0:00:00]} cxb4 {[%emt 0:00:00]} 46. Nd7+ {[%emt 0:00:00]} Ke7 {[%emt 0:00:00]} 47. Nxf8 Kxf8 {[%emt 3:24:12]} 48. axb4 {[%emt 0:00:00]} Nd5 {[%emt 0:00:00]} 49. Rxa6 {[%emt 0:00:00]} Kg7 {[%emt 0:00:00]} 50. Ra1 {[%emt 0:00:00]} Nxb4 {[%emt 0:00:00]} 51. Rb1 {[%emt 0:00:00]} Nd3+ {[%emt 0:00:00]} 52. Ke3 {[%emt 0:00:00]} Ne5 {[%emt 0:00:00]} 53. Rxb5 {[%emt 0:00:00]} f6 {[%emt 0:00:00]} 54. Ke4 {[%emt 0:00:00]} Kg6 {[%emt 0:00:00]} 55. Rb1 {[%emt 0:00:00]} Kg5 {[%emt 0:00:00]} 56. Rg1+ {[%emt 0:00:00]} Ng4 {[%emt 0:00:00]} 57. Kf3 {[%emt 0:00:00]} h5 {[%emt 0:00:00]} 58. Kg3 {[%emt 0:00:00]} f5 {[%emt 0:00:00]} 59. Ra1 {[%emt 0:00:00]} h4+ {[%emt 0:00:00]} 60. Kh3 {[%emt 0:00:00]} Nf2+ {[%emt 0:00:00]} 61. Kg2 {[%emt 0:00:00]} Ne4 {[%emt 0:00:00]} 62. Ra3 {[%emt 0:00:00]} Nf6 {[%emt 0:00:00]} 63. Ra4 {[%emt 0:00:00]} Nh5 {[%emt 0:00:00]} 64. Kh3 {[%emt 0:00:00]} Nf4+ {[%emt 0:00:00]} 65. Kh2 {[%emt 0:00:00]} Kg4 {[%emt 0:00:00]} 66. Ra8 {[%emt 0:00:54]} Ne6 {[%emt 0:00:00]} 67. Rg8+ {[%emt 0:00:14]} Ng5 {[%emt 0:00:00]} 68. Kg2 {[%emt 0:01:40]} Kf4 {[%emt 0:00:00]} 69. Ra8 {[%emt 0:01:34]} h3+ {[%emt 0:00:00]} 70. Kf2 {[%emt 0:01:08]} Ne4+ {[%emt 0:00:00]} 71. Kg1 {[%emt 0:02:46]} Kf3 {[%emt 0:00:00]} 72. Ra3+ {[%emt 0:00:39]} Ke2 {[%emt 0:00:00]} 73. Rxh3 {[%emt 0:00:24]} f4 {[%emt 0:00:00]} 74. Rh8 {[%emt 0:00:37]} f3 {[%emt 0:00:00]} 75. Rf8 {[%emt 0:00:54]} f2+ {[%emt 0:00:00]} 76. Rxf2+ {[%emt 0:00:14]} Nxf2 {[%emt 0:00:00]} 1/2-1/2